bitfinex/quotes_SOLUSD_20250413
["timestamp","ask_amount","ask_price","bid_price","bid_amount"]
[1744573100190,40.93508076,129.11,129.06,40.43508076]
[1744573100393,0.5,129.04,128.95,18.79181043]
[1744573100572,0.5,129.03,128.98,40.43508076]
[1744573100913,0.5,129.02,128.94,45.3878]
[1744573101069,0.5,129.03,128.94,19.3878]
[1744573101273,0.5,129.06,129.02,40.43508076]
[1744573101585,0.5,129.05,129.03,40.43508076]
[1744573101909,0.5,129.07,129.03,40.43508076]
[1744573102372,0.5,129.07,129.04,40.43508076]
[1744573102569,0.5,129.06,128.98,27.1359]
[1744573102768,0.5,128.97,128.9,7.7579]
[1744573103004,0.5,128.96,128.92,40.43508076]
[1744573103312,0.5,128.97,128.89,7.7884]
[1744573103475,0.5,128.95,128.9,40.43508076]
[1744573103807,0.5,128.96,128.93,40.43508076]
[1744573103983,0.5,128.96,128.89,7.7884]
[1744573104302,0.5,128.96,128.92,40.46508076]
[1744573104519,0.5,128.97,128.92,40.46508076]
[1744573104711,0.5,128.98,128.94,40.43508076]
[1744573105002,0.5,128.97,128.92,0.03]
[1744573105203,40.93508076,128.93,128.92,0.03]
[1744573105371,41.2194039,128.93,128.92,0.03]
[1744573105702,0.5,128.91,128.89,0.03]
[1744573106133,0.5,128.92,128.9,40.43508076]
[1744573106422,0.5,128.97,128.91,40.43508076]
[1744573106620,0.5,129.03,128.96,80.87016152]
[1744573106818,6.5866,129.07,129.02,40.43508076]
[1744573106988,0.5,129.02,128.96,40.43508076]
[1744573107190,0.5,129.03,129.01,40.43508076]
[1744573107794,0.5,129.03,129.0,40.43508076]
[1744573108007,0.5,129.02,129.0,40.43508076]
[1744573108199,0.5,129.02,128.94,38.46373357]
[1744573108200,0.5,129.04,128.97,7.7537]
[1744573108406,0.5,129.02,129.01,40.43508076]
[1744573108720,0.5,129.02,129.0,40.43508076]
[1744573109123,0.5,129.03,129.0,40.43508076]
[1744573109919,0.5,129.01,128.97,48.18878076]
[1744573110112,0.5,129.0,128.95,7.7549]
[1744573110315,0.5,129.01,128.95,27.1422]
[1744573110520,0.5,129.0,128.98,40.43508076]
[1744573110717,0.5,129.0,128.95,7.7549]
[1744573111022,0.5,129.0,128.98,40.43508076]
[1744573111207,0.5,128.99,128.95,7.7549]
[1744573111613,0.5,129.03,128.98,40.43508076]
[1744573111932,0.5,129.02,128.95,27.1422]
[1744573112113,0.5,129.02,128.99,40.43508076]
[1744573112310,0.5,129.01,128.95,19.3873]
[1744573112514,0.5,129.01,128.99,40.43508076]
[1744573112714,0.5,129.01,129.0,40.43508076]
[1744573113023,0.5,129.01,128.95,19.3873]
[1744573113222,0.5,129.01,128.99,40.43508076]
[1744573113423,0.5,129.02,128.99,40.43508076]
[1744573113632,0.5,129.01,128.97,40.43508076]
[1744573113809,0.5,129.01,128.89,0.03]
[1744573113810,0.5,128.92,128.89,0.03]
[1744573114211,0.5,128.91,128.89,0.03]
[1744573114407,0.5,128.9,128.89,0.03]
[1744573115232,40.93508076,128.9,128.89,0.03]
[1744573115609,0.5,128.87,128.86,2.7331975]
[1744573115812,40.93508076,128.87,128.86,2.7331975]
[1744573116127,0.5,128.87,128.86,2.7331975]
[1744573116434,41.2194039,128.87,128.86,1.0665975]
[1744573116642,0.5,128.87,128.86,1.0665975]
[1744573116831,40.93508076,128.87,128.86,1.0665975]
[1744573117060,0.5,128.87,128.86,1.0665975]
[1744573117911,0.5,128.87,128.86,8.8268975]
[1744573118110,0.5,128.95,128.86,49.26197826]
[1744573118326,1.5182,128.99,128.94,40.43508076]
[1744573118327,0.5,128.99,128.94,40.43508076]
[1744573118534,0.5,128.95,128.87,18.64964886]
[1744573118727,0.5,128.9,128.86,28.2277975]
[1744573118928,0.5,128.9,128.86,68.66287826]
[1744573119162,0.5,128.92,128.88,40.43508076]
[1744573119439,0.14216157,128.98,128.91,40.43508076]
[1744573119440,0.5,128.98,128.91,40.43508076]
[1744573119630,0.5,128.98,128.94,40.43508076]
[1744573120127,0.5,128.96,128.92,19.3909]
[1744573120321,0.5,128.97,128.94,40.43508076]
[1744573120849,0.5,128.98,128.95,40.43508076]
[1744573121151,0.5,128.95,128.93,7.7555]
[1744573121319,0.5,128.95,128.87,19.3979]
[1744573121521,7.7527,128.99,128.87,7.7597]
[1744573121522,0.5,128.92,128.87,7.7597]
[1744573121751,0.5,128.88,128.86,1.0665975]
[1744573121929,0.5,128.87,128.86,1.0665975]
[1744573122749,40.93508076,128.87,128.86,1.0665975]
[1744573122946,0.5,128.87,128.86,1.0665975]
[1744573123851,0.5,128.88,128.86,1.0665975]
[1744573124051,0.5,128.88,128.86,8.8267975]
[1744573124242,0.5,128.87,128.86,1.0665975]
[1744573124955,18.64964886,128.94,128.86,1.0665975]
[1744573124956,0.5,128.88,128.86,49.26197826]
[1744573125246,0.5,128.91,128.87,40.43508076]
[1744573125547,0.5,128.91,128.86,28.2277975]
[1744573125548,0.5,128.91,128.89,40.43508076]
[1744573125948,40.43508076,128.9,128.86,1.0665975]
[1744573126253,48.69478076,128.87,128.86,1.0665975]
[1744573126428,0.5,128.79,128.73,38.8383]
[1744573126628,0.5,128.81,128.78,40.43508076]
[1744573126948,0.5,128.82,128.8,40.43508076]
[1744573127125,0.5,128.81,128.79,40.43508076]
[1744573127946,0.5,128.78,128.75,27.1843]
[1744573128167,0.5,128.79,128.77,48.20078076]
[1744573128324,38.7607,129.0,128.78,80.87016152]
[1744573128325,0.5,128.87,128.78,80.87016152]
[1744573128522,0.5,128.87,128.8,40.43508076]
[1744573128748,0.5,128.87,128.84,40.43508076]
[1744573129043,0.5,128.86,128.84,40.43508076]
[1744573129225,0.5,128.86,128.8,40.43508076]
[1744573129436,0.5,128.86,128.84,40.43508076]
[1744573129957,0.5,128.86,128.77,104.8379]
[1744573130133,0.5,128.79,128.75,7.7669]
[1744573130458,0.5,128.83,128.78,40.43508076]
[1744573130754,0.5,128.81,128.75,66.0192]
[1744573131123,19.67932314,128.9,128.75,66.0192]
[1744573131124,0.5,128.83,128.75,66.0192]
[1744573131328,0.5,128.86,128.82,40.43508076]
[1744573131525,0.5,128.85,128.84,40.43508076]
[1744573131746,0.5,128.84,128.75,104.8541]
[1744573131958,0.5,128.82,128.81,40.43508076]
[1744573132255,0.5,128.82,128.75,104.8541]
[1744573132256,0.5,128.81,128.75,104.8541]
[1744573132426,0.5,128.81,128.79,40.43508076]
[1744573133357,0.5,128.77,128.75,7.7669]
[1744573133558,0.5,128.76,128.75,7.7669]
[1744573133733,0.5,128.76,128.74,48.20238076]
[1744573133934,0.5,128.78,128.75,40.43508076]
[1744573134132,0.5,128.77,128.75,40.43508076]
[1744573134331,0.5,128.76,128.69,48.92982535]
[1744573134529,0.5,128.77,128.67,46.6308]
[1744573134763,0.5,128.76,128.74,40.43508076]
[1744573134962,0.5,128.77,128.75,40.43508076]
[1744573135134,0.5,128.79,128.76,40.43508076]
[1744573135334,0.5,128.77,128.76,40.43508076]
[1744573135552,7.7632,128.82,128.75,40.43508076]
[1744573135553,0.5,128.78,128.75,40.43508076]
[1744573135857,0.5,128.78,128.76,40.43508076]
[1744573136060,0.5,128.76,128.68,18.64964886]
[1744573136231,0.5,128.76,128.67,27.2013]
[1744573136439,0.5,128.75,128.74,40.43508076]
[1744573136640,0.5,128.77,128.74,40.43508076]
[1744573136841,25.4215,128.85,128.76,40.43508076]
[1744573136842,0.5,128.81,128.76,40.43508076]
[1744573137052,0.5,128.8,128.75,26.0]
[1744573137249,0.5,128.81,128.79,40.43508076]
[1744573137444,0.5,128.8,128.79,40.43508076]
[1744573137857,0.5,128.81,128.79,40.43508076]
[1744573138347,0.5,128.8,128.79,40.43508076]
[1744573138736,0.5,128.79,128.76,40.43508076]
[1744573138933,0.5,128.8,128.78,40.43508076]
[1744573139261,0.5,128.79,128.77,40.43508076]
[1744573139456,0.5,128.82,128.78,40.43508076]
[1744573139637,0.5,128.8,128.73,27.1885]
[1744573139966,0.5,128.81,128.79,40.43508076]
[1744573140149,0.5,128.8,128.79,40.43508076]
[1744573140360,0.5,128.8,128.74,19.4189]
[1744573140541,0.5,128.79,128.76,40.43508076]
[1744573140867,0.5,128.75,128.73,40.43508076]
[1744573141048,0.5,128.74,128.67,7.7718]
[1744573141240,0.5,128.68,128.64,7.7736]
[1744573141438,0.5,128.67,128.63,37.53953083]
[1744573141646,0.5,128.66,128.63,37.53953083]
[1744573141876,0.5,128.65,128.63,37.53953083]
[1744573142085,0.5,128.65,128.6,43.16827826]
[1744573142086,0.5,128.63,128.6,43.16827826]
[1744573142247,0.5,128.63,128.6,2.7331975]
[1744573142844,0.5,128.62,128.6,2.7331975]
[1744573143065,0.5,128.66,128.61,40.43508076]
[1744573143260,0.5,128.68,128.65,40.43508076]
[1744573143493,0.5,128.69,128.67,40.43508076]
[1744573143777,0.5,128.7,128.67,40.43508076]
[1744573144087,0.5,128.7,128.63,26.0]
[1744573144296,0.5,128.74,128.69,40.43508076]
[1744573144477,0.5,128.72,128.65,7.773]
[1744573144675,0.5,128.71,128.67,40.43508076]
[1744573144882,0.5,128.7,128.67,40.43508076]
[1744573145081,0.5,128.7,128.65,7.773]
[1744573145402,0.5,128.7,128.66,40.43508076]
[1744573145605,0.5,128.69,128.62,18.64964886]
[1744573145911,0.5,128.71,128.68,40.43508076]
[1744573146079,0.5,128.72,128.7,40.43508076]
[1744573146282,0.5,128.76,128.71,40.43508076]
[1744573146506,0.5,128.77,128.71,7.7692]
[1744573146799,0.5,128.76,128.74,40.43508076]
[1744573147005,40.93508076,128.75,128.58,0.5]
[1744573147213,40.43508076,128.67,128.61,7.7752]
[1744573147380,0.5,128.64,128.6,2.7331975]
[1744573147585,0.5,128.66,128.63,40.43508076]
[1744573147897,0.5,128.7,128.65,40.43508076]
[1744573148096,0.5,128.68,128.62,18.64964886]
[1744573148406,0.5,128.7,128.66,40.43508076]
[1744573148579,0.5,128.69,128.65,40.43508076]
[1744573148778,0.5,128.72,128.68,40.43508076]
[1744573149004,0.5,128.75,128.71,40.43508076]
[1744573149203,0.5,128.74,128.72,40.43508076]
[1744573149378,40.43508076,128.77,128.66,18.64964886]
[1744573149379,0.5,128.77,128.73,40.43508076]
[1744573149587,0.5,128.79,128.75,40.43508076]
[1744573149778,0.5,128.77,128.68,26.0]
[1744573150116,0.5,128.75,128.72,40.43508076]
[1744573150413,0.5,128.75,128.69,19.4255]
[1744573150582,0.5,128.74,128.7,7.77]
[1744573150781,0.5,128.75,128.72,40.43508076]
[1744573150982,0.5,128.73,128.72,40.43508076]
[1744573151412,0.5,128.76,128.72,40.43508076]
[1744573151586,0.28432314,128.81,128.72,40.43508076]
[1744573151587,0.5,128.75,128.72,40.43508076]
[1744573151783,0.5,128.75,128.7,27.195]
[1744573151993,0.5,128.75,128.73,40.43508076]
[1744573152186,0.5,128.76,128.73,40.43508076]
[1744573152387,0.5,128.77,128.75,7.7669]
[1744573152604,40.93508076,128.76,128.69,19.4258]
[1744573152803,0.5,128.76,128.72,40.43508076]
[1744573153004,0.5,128.75,128.72,40.43508076]
[1744573153206,0.5,128.74,128.7,40.43508076]
[1744573153412,0.5,128.72,128.69,19.4258]
[1744573153620,0.5,128.69,128.63,7.7742]
[1744573153817,0.5,128.65,128.63,7.7742]
[1744573153980,0.5,128.67,128.63,7.7742]
[1744573154321,0.5,128.65,128.63,48.20928076]
[1744573154486,0.5,128.66,128.64,40.43508076]
[1744573154691,0.5,128.65,128.63,19.4355]
[1744573154888,0.5,128.64,128.61,7.7754]
[1744573155214,0.5,128.61,128.6,2.7331975]
[1744573155590,41.07724233,128.61,128.6,2.7331975]
[1744573155820,0.64216157,128.61,128.6,2.7331975]
[1744573156127,0.5,128.61,128.6,2.7331975]
[1744573157817,40.93508076,128.61,128.6,2.7331975]
[1744573158118,0.5,128.61,128.6,10.5091975]
[1744573158411,0.5,128.61,128.6,50.94427826]
[1744573158613,0.5,128.63,128.6,50.94427826]
[1744573158822,0.5,128.61,128.6,50.94427826]
[1744573158982,0.5,128.63,128.6,50.94427826]
[1744573159186,0.5,128.64,128.61,40.43508076]
[1744573159421,0.5,128.64,128.6,29.9492975]
[1744573159422,0.5,128.61,128.6,2.7331975]
[1744573159789,0.5,128.61,128.6,50.94427826]
[1744573160003,0.5,128.64,128.6,70.38437826]
[1744573160201,0.5,128.67,128.63,40.43508076]
[1744573160420,0.5,128.66,128.61,18.79181043]
[1744573160600,0.5,128.66,128.65,40.43508076]
[1744573160790,0.5,128.69,128.63,18.64964886]
[1744573160998,26.5,128.66,128.63,40.43508076]
[1744573161213,26.5,128.66,128.6,2.7331975]
[1744573161214,0.5,128.61,128.6,2.7331975]
[1744573161688,40.93508076,128.61,128.6,2.7331975]
[1744573162514,0.5,128.61,128.6,2.7331975]
[1744573162817,40.93508076,128.61,128.6,2.7331975]
[1744573163120,59.72689119,128.61,128.6,1.0665975]
[1744573163298,0.5,128.52,128.51,7.7809]
[1744573163501,0.5,128.53,128.51,48.21598076]
[1744573163722,0.5,128.53,128.52,40.43508076]
[1744573164016,0.5,128.5,128.47,40.43508076]
[1744573164521,0.5,128.52,128.47,27.2436]
[1744573164728,0.5,128.52,128.49,40.43508076]
[1744573164903,0.5,128.52,128.51,40.43508076]
[1744573165219,0.5,128.51,128.47,32.4183174]
[1744573165527,0.5,128.51,128.48,40.43508076]
[1744573165704,0.5,128.51,128.49,40.43508076]
[1744573165894,0.5,128.5,128.49,40.43508076]
[1744573166095,0.5,128.48,128.47,5.1747174]
[1744573168328,0.5,128.48,128.47,4.23792329]
[1744573169201,81.79664623,128.48,128.47,4.23792329]
[1744573169390,108.22959509,128.48,128.47,4.23792329]
[1744573169596,0.5,128.43,128.38,7.7891]
[1744573170117,0.5,128.45,128.41,40.43508076]
[1744573170425,0.5,128.4,128.38,7.7891]
[1744573170627,0.5,128.43,128.35,7.7911]
[1744573170810,0.5,128.43,128.38,40.43508076]
[1744573170811,0.5,128.41,128.38,40.43508076]
[1744573170996,0.5,128.44,128.36,19.4756]
[1744573171201,0.5,128.45,128.37,18.64964886]
[1744573171536,0.5,128.45,128.42,40.43508076]
[1744573171821,0.5,128.44,128.37,18.64964886]
[1744573172026,0.5,128.41,128.35,7.7911]
[1744573172232,0.5,128.38,128.34,2.7970829]
[1744573172527,0.5,128.36,128.34,43.23216366]
[1744573172909,0.5,128.36,128.34,2.7970829]
[1744573173129,0.5,128.35,128.34,2.7970829]
[1744573173525,0.5,128.34,128.29,7.7943]
[1744573173725,0.5,128.34,128.26,16.0]
[1744573173726,0.5,128.29,128.26,16.0]
[1744573173928,0.5,128.28,128.26,16.0]
[1744573174236,0.5,128.28,128.26,23.7966]
[1744573174534,0.5,128.29,128.26,23.7966]
[1744573174914,0.5,128.29,128.26,64.63686504]
[1744573175115,0.5,128.3,128.26,23.7966]
[1744573175313,0.5,128.29,128.26,23.7966]
[1744573175518,0.5,128.3,128.28,40.84026504]
[1744573175817,0.5,128.3,128.26,23.7966]
[1744573176020,0.5,128.29,128.26,23.7966]
[1744573176418,0.5,128.3,128.26,23.7966]
[1744573176625,0.5,128.27,128.26,16.0]
[1744573176803,49.13626504,128.27,128.26,16.0]
[1744573177008,0.5,128.27,128.26,16.0]
[1744573177232,41.34026504,128.27,128.26,16.0]
[1744573177534,0.5,128.27,128.26,16.0]
[1744573177999,26.0,128.24,128.14,1.6185]
[1744573178207,0.5,128.17,128.14,1.6185]
[1744573178518,0.5,128.18,128.14,9.4223]
[1744573178704,0.5,128.2,128.17,40.84026504]
[1744573178906,0.5,128.22,128.14,9.4223]
[1744573179135,0.5,128.21,128.2,40.84026504]
[1744573179439,0.5,128.19,128.14,28.9322]
[1744573179657,0.5,128.17,128.14,9.4223]
[1744573179840,0.5,128.17,128.14,7.8038]
[1744573180137,41.34026504,128.17,128.09,1.5981]
[1744573180331,0.5,128.14,128.1,7.8064]
[1744573180510,0.5,128.14,128.13,40.87026504]
[1744573180709,0.5,128.18,128.13,60.38166504]
[1744573180968,0.5,128.19,128.17,40.84026504]
[1744573181278,0.5,128.25,128.18,40.84026504]
[1744573181447,0.5,128.27,128.18,18.933972]
[1744573181647,0.5,128.27,128.21,26.0]
[1744573181868,0.5,128.23,128.21,1.5139]
[1744573182073,0.5,128.21,128.2,40.84026504]
[1744573182247,0.5,128.21,128.19,40.84026504]
[1744573182455,0.5,128.23,128.2,40.84026504]
[1744573182673,0.5,128.22,128.21,40.84026504]
[1744573182841,0.5,128.23,128.17,7.8021]
[1744573183040,0.5,128.23,128.22,40.84026504]
[1744573183241,0.5,128.2,128.17,7.8021]
[1744573183469,0.5,128.19,128.17,7.8021]
[1744573183682,0.5,128.18,128.17,7.8021]
[1744573184172,1.0,128.27,128.15,1.5139]
[1744573184173,0.5,128.17,128.15,1.5139]
[1744573184375,0.14216157,128.23,128.08,49.91174794]
[1744573184376,0.5,128.15,128.09,19.5175]
[1744573184588,0.5,128.13,128.11,40.84026504]
[1744573184768,0.5,128.13,128.1,7.8064]
[1744573185081,0.5,128.15,128.12,40.84026504]
[1744573185252,7.94256157,128.2,128.1,7.8064]
[1744573185253,0.5,128.13,128.1,7.8064]
[1744573185573,0.5,128.18,128.12,40.84026504]
[1744573185777,0.5,128.18,128.1,27.3224]
[1744573186083,0.5,128.11,128.08,45.17934794]
[1744573186281,0.5,128.1,128.08,4.3390829]
[1744573186454,0.5,128.12,128.09,40.84026504]
[1744573186653,0.5,128.17,128.12,7.8051]
[1744573186945,0.5,128.18,128.12,7.8051]
[1744573187173,0.5,128.14,128.08,4.3390829]
[1744573187376,0.14216157,128.21,128.08,4.3390829]
[1744573187377,0.5,128.12,128.08,52.98684794]
[1744573187583,0.5,128.14,128.08,12.1465829]
[1744573187882,0.14216157,128.21,128.13,81.68053008]
[1744573187883,0.5,128.21,128.13,81.68053008]
[1744573188050,0.5,128.21,128.13,26.0]
[1744573188247,0.5,128.21,128.16,40.84026504]
[1744573188451,0.5,128.21,128.2,40.84026504]
[1744573188767,0.5,128.23,128.2,40.84026504]
[1744573189079,0.5,128.2,128.14,18.64964886]
[1744573189371,0.5,128.22,128.19,40.84026504]
[1744573189578,0.5,128.21,128.15,26.0]
[1744573189784,0.5,128.24,128.2,40.84026504]
[1744573190074,0.5,128.19,128.12,27.3176]
[1744573190283,0.5,128.17,128.15,40.84026504]
[1744573190586,0.5,128.15,128.14,0.03]
[1744573191147,0.5,128.13,128.11,40.84026504]
[1744573191550,0.5,128.12,128.11,40.84026504]
[1744573192181,0.5,128.11,128.08,4.3390829]
[1744573192363,0.5,128.11,128.1,40.84026504]
[1744573192550,0.5,128.11,128.08,4.3390829]
[1744573192749,0.5,128.12,128.09,40.84026504]
[1744573192954,0.5,128.11,128.08,2.7970829]
[1744573193175,0.5,128.09,128.08,43.63734794]
[1744573193472,0.5,128.09,128.08,43.13734794]
[1744573193662,0.5,128.09,128.08,2.2970829]
[1744573194080,45.29181043,128.09,128.08,8.29e-05]
[1744573194251,0.5,128.01,127.99,3.8909901]
[1744573194558,0.5,128.0,127.99,3.8909901]
[1744573195276,8.3125,128.0,127.99,3.8909901]
[1744573195457,49.15276504,128.0,127.99,3.8909901]
[1744573195663,109.06916365,128.0,127.99,3.8909901]
[1744573195880,109.06916365,128.0,127.87,4.02252465]
[1744573195881,0.5,127.91,127.87,4.02252465]
[1744573196171,0.5,127.9,127.87,4.02252465]
[1744573196390,0.5,127.88,127.87,4.02252465]
[1744573196681,0.5,127.9,127.87,39.34026504]
[1744573196972,0.5,127.87,127.83,7.8228]
[1744573197172,0.5,127.85,127.82,2.7970829]
[1744573197374,0.5,127.86,127.82,2.7970829]
[1744573197671,0.5,127.89,127.85,40.84026504]
[1744573197874,7.8168,127.93,127.88,40.84026504]
[1744573197875,0.5,127.93,127.88,40.84026504]
[1744573198074,0.5,127.91,127.85,26.0]
[1744573198271,0.5,127.95,127.9,40.84026504]
[1744573198681,0.5,127.94,127.92,40.84026504]
[1744573198972,0.5,127.97,127.93,40.84026504]
[1744573199175,0.5,128.01,127.96,40.84026504]
[1744573199375,0.5,128.01,127.97,40.84026504]
[1744573199703,6.0282,128.06,127.92,7.8173]
[1744573199704,0.5,127.96,127.92,7.8173]
[1744573199853,0.5,127.96,127.92,48.65756504]
[1744573200055,0.5,127.96,127.9,7.8186]
[1744573200250,0.5,128.0,127.95,40.84026504]
[1744573200453,0.5,128.03,127.99,40.84026504]
[1744573200650,0.5,128.0,127.94,0.14216157]
[1744573200972,0.5,127.94,127.9,19.5465]
[1744573201158,0.5,127.92,127.88,7.8198]
[1744573201552,0.5,127.92,127.89,40.84026504]
[1744573201877,0.5,127.96,127.91,40.84026504]
[1744573202067,0.5,127.92,127.88,48.66006504]
[1744573202376,0.5,127.94,127.9,40.84026504]
[1744573202585,0.5,127.91,127.88,7.8198]
[1744573202766,0.5,127.91,127.86,7.821]
[1744573202978,0.5,127.85,127.83,7.8223]
[1744573203156,0.5,127.83,127.82,2.7970829]
[1744573204073,0.5,127.87,127.82,71.01954794]
[1744573204383,0.5,127.91,127.86,40.87026504]
[1744573204587,0.5,127.9,127.86,0.03]
[1744573204750,0.5,127.93,127.85,46.309672]
[1744573204954,0.5,127.95,127.92,40.84026504]
[1744573205156,0.5,127.95,127.85,85.417972]
[1744573205157,0.5,127.97,127.94,40.84026504]
[1744573205461,0.5,127.96,127.9,26.0]
[1744573205660,0.5,127.97,127.95,40.84026504]
[1744573205860,0.5,127.98,127.96,40.84026504]
[1744573206056,0.5,128.0,127.97,40.84026504]
[1744573206275,115.89954624,128.08,127.93,18.933972]
[1744573206276,0.5,127.98,127.93,18.933972]
[1744573206474,0.5,128.0,127.97,40.34026504]
[1744573206656,0.5,128.0,127.99,40.84026504]
[1744573207985,0.5,127.98,127.94,7.8161]
[1744573208156,0.5,128.02,127.97,40.84026504]
[1744573208351,0.5,128.02,127.94,7.8161]
[1744573208352,0.5,128.0,127.99,40.84026504]
[1744573208571,0.5,127.98,127.94,7.8161]
[1744573208881,0.5,128.0,127.98,7.8137]
[1744573209056,0.5,128.03,127.98,27.348]
[1744573209251,0.5,128.05,128.02,40.84026504]
[1744573209459,0.5,128.02,127.98,27.348]
[1744573209666,0.5,128.02,128.01,40.84026504]
[1744573209862,0.5,128.09,128.01,40.84026504]
[1744573210058,0.5,128.06,128.01,18.933972]
[1744573210259,0.5,128.07,128.02,0.14216157]
[1744573210462,0.5,128.07,128.01,18.933972]
[1744573210758,0.14216157,128.15,128.02,27.3393]
[1744573210759,0.5,128.05,128.02,27.3393]
[1744573211072,0.5,128.07,128.03,18.933972]
[1744573211261,0.5,128.07,128.06,40.84026504]
[1744573211581,0.5,128.05,128.02,27.3393]
[1744573211778,0.5,128.05,128.04,40.84026504]
[1744573212159,0.5,128.09,128.04,40.84026504]
[1744573212481,0.5,128.09,128.08,40.84026504]
[1744573213077,0.5,128.09,128.08,89.48813008]
[1744573213461,0.5,128.11,128.08,89.48813008]
[1744573213682,0.5,128.11,128.1,40.84026504]
[1744573213977,0.5,128.09,128.08,7.8076]
[1744573214182,0.5,128.13,128.08,109.00713008]
[1744573214487,0.5,128.1,128.05,19.5232]
[1744573214717,0.42648471,128.18,128.06,7.8088]
[1744573214718,0.5,128.07,128.06,7.8088]
[1744573214869,0.5,128.07,128.06,48.64906504]
[1744573215267,0.5,128.08,128.06,48.64906504]
[1744573215473,0.5,128.08,128.06,7.8088]
[1744573215670,0.5,128.08,128.07,40.84026504]
[1744573215900,0.5,128.09,128.07,40.84026504]
[1744573216105,0.5,128.09,128.01,64.645572]
[1744573216106,0.5,128.03,127.96,0.14216157]
[1744573216402,26.0,128.09,127.95,6.6547]
[1744573216403,0.5,128.01,127.98,7.8137]
[1744573216563,0.5,128.05,128.0,81.68053008]
[1744573216764,0.5,128.07,128.04,40.84026504]
[1744573216985,0.5,128.08,128.02,0.42648471]
[1744573217286,20.0,128.23,128.02,0.42648471]
[1744573217287,0.5,128.16,128.09,18.64964886]
[1744573217493,0.5,128.15,128.09,18.64964886]
[1744573217865,0.063,128.13,128.1,0.42648471]
[1744573218072,0.063,128.13,128.12,59.4899139]
[1744573218276,0.5,128.18,128.12,59.4899139]
[1744573218488,0.5,128.18,128.17,40.84026504]
[1744573218689,0.063,128.2,128.17,40.84026504]
[1744573218690,0.5,128.19,128.17,40.84026504]
[1744573218892,0.063,128.2,128.18,40.84026504]
[1744573219111,0.5,128.17,128.1,19.07613357]
[1744573219402,0.5,128.19,128.16,40.84026504]
[1744573219615,0.5,128.16,128.13,19.07613357]
[1744573219795,0.5,128.17,128.15,40.84026504]
[1744573220107,0.5,128.18,128.16,40.84026504]
[1744573220284,0.5,128.18,128.13,0.42648471]
[1744573220479,0.063,128.2,128.17,40.84026504]
[1744573220680,0.063,128.2,128.19,40.84026504]
[1744573220898,0.563,128.2,128.16,40.84026504]
[1744573221183,0.563,128.2,128.19,48.64116504]
[1744573221599,0.063,128.2,128.19,48.64116504]
[1744573221986,0.063,128.2,128.19,67.71729861]
[1744573222214,0.5,128.26,128.21,0.42648471]
[1744573222400,0.5,128.26,128.25,40.84026504]
[1744573222808,0.5,128.24,128.2,20.18564886]
[1744573223000,0.5,128.24,128.23,40.84026504]
[1744573223213,0.5,128.23,128.19,7.8009]
[1744573223498,0.5,128.21,128.2,40.84026504]
[1744573223687,0.5,128.21,128.19,7.8009]
[1744573223905,0.5,128.21,128.2,40.84026504]
[1744573224214,0.5,128.18,128.13,19.5107]
[1744573224397,0.5,128.17,128.13,19.5107]
[1744573224583,0.5,128.2,128.15,27.3116]
[1744573224790,0.5,128.22,128.16,18.64964886]
[1744573224982,0.5,128.23,128.17,0.42648471]
[1744573225182,0.5,128.23,128.18,7.8015]